[Event "*** Titled Tuesday Blitz"]
[Site "Chess.com"]
[Date "2021.02.16"]
[Round "1"]
[White "Grineva_Marianna"]
[Black "Hypercar"]
[Result "1-0"]
[WhiteElo "2234"]
[BlackElo "2525"]
[TimeControl "180+1"]
[EndTime "10:08:35 PST"]
[Termination "Grineva_Marianna won on time"]

1. e4 {[%clk 0:03:00.9]} 1... c5 {[%clk 0:02:58.5]} 2. Nf3 {[%clk 0:03:01.2]}
2... Nc6 {[%clk 0:02:58.3]} 3. d4 {[%clk 0:03:01.5]} 3... cxd4 {[%clk
0:02:59.2]} 4. Nxd4 {[%clk 0:03:02]} 4... Nf6 {[%clk 0:02:59.7]} 5. Nc3 {[%clk
0:03:01.9]} 5... e6 {[%clk 0:03:00.1]} 6. Ndb5 {[%clk 0:02:59]} 6... d6 {[%clk
0:02:59.3]} 7. Bf4 {[%clk 0:02:52.8]} 7... e5 {[%clk 0:02:59.4]} 8. Bg5 {[%clk
0:02:53.3]} 8... a6 {[%clk 0:02:59.3]} 9. Na3 {[%clk 0:02:50.6]} 9... Be7 {[%clk
0:02:56.4]} 10. Bxf6 {[%clk 0:02:48.8]} 10... Bxf6 {[%clk 0:02:56.6]} 11. Nd5
{[%clk 0:02:49.4]} 11... O-O {[%clk 0:02:55.9]} 12. Be2 {[%clk 0:02:43.9]} 12...
Bg5 {[%clk 0:02:54.3]} 13. O-O {[%clk 0:02:40.1]} 13... Ne7 {[%clk 0:02:54.4]}
14. Bc4 {[%clk 0:02:35.2]} 14... b5 {[%clk 0:02:51.2]} 15. Bb3 {[%clk
0:02:34.6]} 15... Be6 {[%clk 0:02:49.7]} 16. c3 {[%clk 0:02:32.2]} 16... Rc8
{[%clk 0:02:46.5]} 17. Nc2 {[%clk 0:02:32.2]} 17... Rc5 {[%clk 0:02:45.5]} 18.
Nce3 {[%clk 0:02:17.7]} 18... Bxe3 {[%clk 0:02:39.3]} 19. Nxe3 {[%clk
0:02:18.6]} 19... d5 {[%clk 0:02:28.5]} 20. Qf3 {[%clk 0:02:08.1]} 20... dxe4
{[%clk 0:02:13.3]} 21. Qxe4 {[%clk 0:02:09]} 21... Bxb3 {[%clk 0:02:13.4]} 22.
axb3 {[%clk 0:02:08.3]} 22... f5 {[%clk 0:02:10.8]} 23. Qb4 {[%clk 0:01:54.2]}
23... Rc6 {[%clk 0:02:01.2]} 24. Rfd1 {[%clk 0:01:50.2]} 24... Qc7 {[%clk
0:02:01.2]} 25. Nd5 {[%clk 0:01:43.6]} 25... Nxd5 {[%clk 0:02:00.8]} 26. Rxd5
{[%clk 0:01:42.8]} 26... h6 {[%clk 0:01:56.3]} 27. Rad1 {[%clk 0:01:36.5]} 27...
Rf7 {[%clk 0:01:56.1]} 28. Qh4 {[%clk 0:01:30.8]} 28... Kh7 {[%clk 0:01:53.6]}
29. h3 {[%clk 0:01:21.5]} 29... e4 {[%clk 0:01:50.4]} 30. Qh5 {[%clk 0:01:11.3]}
30... Rcf6 {[%clk 0:01:46.5]} 31. Rd8 {[%clk 0:01:04.8]} 31... f4 {[%clk
0:01:41.1]} 32. Qd5 {[%clk 0:01:05]} 32... Qe7 {[%clk 0:01:32.6]} 33. Rd7 {[%clk
0:00:58.2]} 33... Qe8 {[%clk 0:01:22.4]} 34. Rxf7 {[%clk 0:00:49.9]} 34... Rxf7
{[%clk 0:01:22.4]} 35. Rd4 {[%clk 0:00:45.2]} 35... e3 {[%clk 0:01:04.7]} 36.
fxe3 {[%clk 0:00:43.9]} 36... fxe3 {[%clk 0:01:05.6]} 37. Qe4+ {[%clk
0:00:40.7]} 37... Qxe4 {[%clk 0:00:55.9]} 38. Rxe4 {[%clk 0:00:41.6]} 38... Rf2
{[%clk 0:00:55.8]} 39. Rxe3 {[%clk 0:00:40]} 39... Rxb2 {[%clk 0:00:56.4]} 40.
c4 {[%clk 0:00:37.2]} 40... b4 {[%clk 0:00:54.6]} 41. Kh2 {[%clk 0:00:35]} 41...
a5 {[%clk 0:00:49.8]} 42. Kg3 {[%clk 0:00:34.1]} 42... Kg6 {[%clk 0:00:46.6]}
43. Kf3 {[%clk 0:00:34.1]} 43... Kf6 {[%clk 0:00:43]} 44. Rd3 {[%clk 0:00:32.7]}
44... Rc2 {[%clk 0:00:40.3]} 45. Rd5 {[%clk 0:00:20.3]} 45... Rc3+ {[%clk
0:00:36.5]} 46. Ke4 {[%clk 0:00:20.7]} 46... Rxb3 {[%clk 0:00:33.7]} 47. Rxa5
{[%clk 0:00:21.1]} 47... Rb2 {[%clk 0:00:34.2]} 48. g4 {[%clk 0:00:21.1]} 48...
Rc2 {[%clk 0:00:31.3]} 49. Kd3 {[%clk 0:00:20.4]} 49... Rh2 {[%clk 0:00:30.1]}
50. Rb5 {[%clk 0:00:14.7]} 50... Rxh3+ {[%clk 0:00:30.2]} 51. Kd4 {[%clk
0:00:15.2]} 51... b3 {[%clk 0:00:30.3]} 52. c5 {[%clk 0:00:14.8]} 52... Ke6
{[%clk 0:00:29.2]} 53. Rb6+ {[%clk 0:00:13.7]} 53... Kd7 {[%clk 0:00:27.3]} 54.
Kc4 {[%clk 0:00:14]} 54... Rg3 {[%clk 0:00:22.5]} 55. Rxb3 {[%clk 0:00:14.1]}
55... Rxg4+ {[%clk 0:00:22.3]} 56. Kb5 {[%clk 0:00:14.3]} 56... h5 {[%clk
0:00:15.8]} 57. Kb6 {[%clk 0:00:14.4]} 57... Rg1 {[%clk 0:00:12.6]} 58. Rd3+
{[%clk 0:00:14]} 58... Kc8 {[%clk 0:00:12.1]} 59. Rf3 {[%clk 0:00:14.2]} 59...
g5 {[%clk 0:00:09.5]} 60. Kc6 {[%clk 0:00:13.4]} 60... Kd8 {[%clk 0:00:08.9]}
61. Rf8+ {[%clk 0:00:13.5]} 61... Ke7 {[%clk 0:00:09.2]} 62. Rh8 {[%clk
0:00:14]} 62... h4 {[%clk 0:00:09.6]} 63. Kc7 {[%clk 0:00:13.9]} 63... Kf6
{[%clk 0:00:09.6]} 64. c6 {[%clk 0:00:14.2]} 64... Kf5 {[%clk 0:00:09.1]} 65.
Kc8 {[%clk 0:00:14.6]} 65... Kg4 {[%clk 0:00:09]} 66. c7 {[%clk 0:00:15.1]}
66... Rc1 {[%clk 0:00:09.7]} 67. Kd7 {[%clk 0:00:13.8]} 67... h3 {[%clk
0:00:10]} 68. c8=Q {[%clk 0:00:10.3]} 68... Rxc8 {[%clk 0:00:10.9]} 69. Kxc8
{[%clk 0:00:10.1]} 69... Kg3 {[%clk 0:00:11.5]} 70. Kd7 {[%clk 0:00:10.1]} 1-0

[Event "*** Titled Tuesday Blitz"]
[Site "Chess.com"]
[Date "2021.02.16"]
[Round "1"]
[White "bocah_sakit"]
[Black "Kapitan_Bayan"]
[Result "0-1"]
[WhiteElo "2845"]
[BlackElo "2452"]
[TimeControl "180+1"]
[EndTime "10:08:40 PST"]
[Termination "Kapitan_Bayan won by checkmate"]

1. e4 {[%clk 0:03:00.9]} 1... Nc6 {[%clk 0:02:57.5]} 2. d4 {[%clk 0:03:00.1]}
2... d5 {[%clk 0:02:57.9]} 3. e5 {[%clk 0:02:59.9]} 3... Bf5 {[%clk 0:02:58.2]}
4. c3 {[%clk 0:03:00.4]} 4... Qd7 {[%clk 0:02:58.5]} 5. Nf3 {[%clk 0:02:58.6]}
5... f6 {[%clk 0:02:57.7]} 6. b4 {[%clk 0:02:54.2]} 6... h5 {[%clk 0:02:55]} 7.
Bd3 {[%clk 0:02:52.9]} 7... Nh6 {[%clk 0:02:54.2]} 8. O-O {[%clk 0:02:52.6]}
8... O-O-O {[%clk 0:02:52.4]} 9. Re1 {[%clk 0:02:51.5]} 9... Bxd3 {[%clk
0:02:49.9]} 10. Qxd3 {[%clk 0:02:52.4]} 10... Qf5 {[%clk 0:02:50.1]} 11. Qd1
{[%clk 0:02:27]} 11... e6 {[%clk 0:02:39.6]} 12. Qa4 {[%clk 0:02:26.3]} 12...
fxe5 {[%clk 0:01:32.2]} 13. b5 {[%clk 0:02:23.5]} 13... e4 {[%clk 0:01:30.3]}
14. Nh4 {[%clk 0:01:54.1]} 14... Qg4 {[%clk 0:01:26]} 15. bxc6 {[%clk
0:01:54.4]} 15... Qxh4 {[%clk 0:01:22.9]} 16. cxb7+ {[%clk 0:01:48.8]} 16... Kb8
{[%clk 0:01:19]} 17. h3 {[%clk 0:01:40.6]} 17... Ng4 {[%clk 0:01:13.1]} 18. Be3
{[%clk 0:01:40.4]} 18... Bd6 {[%clk 0:01:05.1]} 19. Na3 {[%clk 0:01:37.4]} 19...
Nxe3 {[%clk 0:00:46.5]} 20. Rxe3 {[%clk 0:01:33]} 20... Bxa3 {[%clk 0:00:42]}
21. Qxa3 {[%clk 0:01:32.7]} 21... Rhf8 {[%clk 0:00:41.4]} 22. Re2 {[%clk
0:01:29.5]} 22... g5 {[%clk 0:00:36.5]} 23. Qe7 {[%clk 0:00:58.7]} 23... Rde8
{[%clk 0:00:28.2]} 24. Qh7 {[%clk 0:00:58.9]} 24... Rh8 {[%clk 0:00:21]} 25. Qf7
{[%clk 0:00:57.6]} 25... Rhf8 {[%clk 0:00:21.2]} 26. Qh7 {[%clk 0:00:57.9]}
26... Rh8 {[%clk 0:00:21.1]} 27. Qg6 {[%clk 0:00:48.4]} 27... Rhg8 {[%clk
0:00:20.5]} 28. Qf6 {[%clk 0:00:48.7]} 28... Rgf8 {[%clk 0:00:20.2]} 29. Qe5
{[%clk 0:00:49.1]} 29... g4 {[%clk 0:00:18.1]} 30. Qg3 {[%clk 0:00:34.8]} 30...
Qxg3 {[%clk 0:00:10.2]} 31. fxg3 {[%clk 0:00:35.7]} 31... gxh3 {[%clk
0:00:11.1]} 32. gxh3 {[%clk 0:00:35.9]} 32... Rf3 {[%clk 0:00:11.8]} 33. Kh2
{[%clk 0:00:33.3]} 33... Rg8 {[%clk 0:00:08.3]} 34. Rg1 {[%clk 0:00:31.1]} 34...
Rxc3 {[%clk 0:00:08.5]} 35. Rf2 {[%clk 0:00:27]} 35... Rd3 {[%clk 0:00:07.4]}
36. Rf6 {[%clk 0:00:27.5]} 36... Rxd4 {[%clk 0:00:07.5]} 37. Rxe6 {[%clk
0:00:28.1]} 37... Rd2+ {[%clk 0:00:07.8]} 38. Rg2 {[%clk 0:00:28]} 38... Rxg2+
{[%clk 0:00:06]} 39. Kxg2 {[%clk 0:00:28.9]} 39... Kxb7 {[%clk 0:00:06.6]} 40.
Re5 {[%clk 0:00:29.3]} 40... Kc6 {[%clk 0:00:06.5]} 41. Rxh5 {[%clk 0:00:29.3]}
41... d4 {[%clk 0:00:06.9]} 42. Re5 {[%clk 0:00:29.3]} 42... e3 {[%clk
0:00:07.2]} 43. Kf3 {[%clk 0:00:28.6]} 43... Kd6 {[%clk 0:00:07.7]} 44. Re4
{[%clk 0:00:27.4]} 44... c5 {[%clk 0:00:08.3]} 45. h4 {[%clk 0:00:27.4]} 45...
Kd5 {[%clk 0:00:08.5]} 46. Re7 {[%clk 0:00:27.7]} 46... Rf8+ {[%clk 0:00:08.7]}
47. Ke2 {[%clk 0:00:22.9]} 47... Rf2+ {[%clk 0:00:08.8]} 48. Ke1 {[%clk
0:00:23.5]} 48... Rg2 {[%clk 0:00:09.4]} 49. h5 {[%clk 0:00:14.7]} 49... Rxg3
{[%clk 0:00:08.9]} 50. h6 {[%clk 0:00:15.3]} 50... Rh3 {[%clk 0:00:09.5]} 51. h7
{[%clk 0:00:15.8]} 51... Kc4 {[%clk 0:00:09.1]} 52. Ke2 {[%clk 0:00:16.1]} 52...
Rh2+ {[%clk 0:00:09]} 53. Kf3 {[%clk 0:00:16.3]} 53... Kd3 {[%clk 0:00:09.1]}
54. Kg3 {[%clk 0:00:16.7]} 54... Rh1 {[%clk 0:00:08.8]} 55. Kg2 {[%clk
0:00:12.9]} 55... Rh6 {[%clk 0:00:09]} 56. Rxa7 {[%clk 0:00:12.9]} 56... c4
{[%clk 0:00:09.1]} 57. a4 {[%clk 0:00:11.9]} 57... c3 {[%clk 0:00:09.4]} 58. Rc7
{[%clk 0:00:10.6]} 58... e2 {[%clk 0:00:08.9]} 59. Re7 {[%clk 0:00:03.5]} 59...
c2 {[%clk 0:00:08.4]} 60. Re6 {[%clk 0:00:02.6]} 60... Rxh7 {[%clk 0:00:07.8]}
61. Rg6 {[%clk 0:00:03.2]} 61... e1=Q {[%clk 0:00:07.5]} 62. Rg3+ {[%clk
0:00:04.1]} 62... Qxg3+ {[%clk 0:00:07.8]} 63. Kxg3 {[%clk 0:00:05]} 63... c1=Q
{[%clk 0:00:08.3]} 64. Kg4 {[%clk 0:00:05.9]} 64... Qe3 {[%clk 0:00:08.9]} 65.
Kf5 {[%clk 0:00:06.4]} 65... Rf7+ {[%clk 0:00:09.3]} 66. Kg6 {[%clk 0:00:07.3]}
66... Qe6+ {[%clk 0:00:09.4]} 67. Kg5 {[%clk 0:00:07.1]} 67... Rf5+ {[%clk
0:00:10.3]} 68. Kh4 {[%clk 0:00:08]} 68... Qg6 {[%clk 0:00:11.2]} 69. Kh3 {[%clk
0:00:08.2]} 69... Rh5# {[%clk 0:00:10.8]} 0-1

[Event "*** Titled Tuesday Blitz"]
[Site "Chess.com"]
[Date "2021.02.16"]
[Round "1"]
[White "Logman74"]
[Black "Vanina1989"]
[Result "0-1"]
[WhiteElo "2394"]
[BlackElo "2735"]
[TimeControl "180+1"]
[EndTime "10:08:40 PST"]
[Termination "Vanina1989 won by checkmate"]

1. e4 {[%clk 0:03:00.2]} 1... c6 {[%clk 0:02:59.7]} 2. d4 {[%clk 0:02:58.6]}
2... d5 {[%clk 0:02:59.8]} 3. exd5 {[%clk 0:02:59.3]} 3... cxd5 {[%clk
0:02:59.8]} 4. c4 {[%clk 0:03:00]} 4... Nf6 {[%clk 0:02:59.6]} 5. Nc3 {[%clk
0:03:00.5]} 5... g6 {[%clk 0:03:00]} 6. Qb3 {[%clk 0:02:58.8]} 6... Bg7 {[%clk
0:02:58.9]} 7. cxd5 {[%clk 0:02:59.3]} 7... O-O {[%clk 0:02:59.2]} 8. Be2 {[%clk
0:02:59.5]} 8... Na6 {[%clk 0:02:59.4]} 9. Bf3 {[%clk 0:02:59.4]} 9... Qb6
{[%clk 0:02:59.6]} 10. Qxb6 {[%clk 0:02:57.2]} 10... axb6 {[%clk 0:02:59.9]} 11.
Nge2 {[%clk 0:02:56.7]} 11... Rd8 {[%clk 0:03:00]} 12. d6 {[%clk 0:02:46.4]}
12... Rxd6 {[%clk 0:02:59.5]} 13. Bf4 {[%clk 0:02:45.5]} 13... Rd7 {[%clk
0:02:59.9]} 14. O-O {[%clk 0:02:44.7]} 14... Nb4 {[%clk 0:02:59.9]} 15. a3
{[%clk 0:02:39.4]} 15... Nd3 {[%clk 0:02:59.9]} 16. Bc1 {[%clk 0:02:28]} 16...
e5 {[%clk 0:02:55.4]} 17. Rd1 {[%clk 0:02:16.7]} 17... exd4 {[%clk 0:02:14.9]}
18. Rxd3 {[%clk 0:02:12.8]} 18... dxc3 {[%clk 0:02:15.1]} 19. Rxd7 {[%clk
0:02:12.9]} 19... Nxd7 {[%clk 0:02:15.1]} 20. Nxc3 {[%clk 0:02:13.6]} 20... Nc5
{[%clk 0:02:13]} 21. Be3 {[%clk 0:02:10.5]} 21... Be6 {[%clk 0:02:10.2]} 22. g3
{[%clk 0:01:53.3]} 22... Nd3 {[%clk 0:01:59.8]} 23. Rb1 {[%clk 0:01:36.5]} 23...
Nxb2 {[%clk 0:01:32.1]} 24. Rxb2 {[%clk 0:01:35.2]} 24... Bxc3 {[%clk
0:01:31.9]} 25. Rxb6 {[%clk 0:01:28.4]} 25... Rxa3 {[%clk 0:01:28.4]} 26. Kg2
{[%clk 0:01:26.9]} 26... Ra1 {[%clk 0:00:57.4]} 27. Rxb7 {[%clk 0:01:23]} 27...
Bc4 {[%clk 0:00:54.1]} 28. h4 {[%clk 0:01:17.8]} 28... Kg7 {[%clk 0:00:40.1]}
29. h5 {[%clk 0:01:14.7]} 29... gxh5 {[%clk 0:00:26]} 30. Kh2 {[%clk 0:01:14.6]}
30... h4 {[%clk 0:00:18.5]} 31. Rc7 {[%clk 0:01:05.8]} 31... hxg3+ {[%clk
0:00:18.7]} 32. fxg3 {[%clk 0:01:05.4]} 32... Ra2+ {[%clk 0:00:18.7]} 33. Kh3
{[%clk 0:01:00.1]} 33... Be6+ {[%clk 0:00:18]} 34. Bg4 {[%clk 0:00:35.2]} 34...
Bxg4+ {[%clk 0:00:18]} 35. Kxg4 {[%clk 0:00:35.2]} 35... Be5 {[%clk 0:00:18.2]}
36. Rc5 {[%clk 0:00:32.1]} 36... f6 {[%clk 0:00:17.5]} 37. Bf4 {[%clk
0:00:30.5]} 37... Bxf4 {[%clk 0:00:17.2]} 38. Kxf4 {[%clk 0:00:29.8]} 38... Kg6
{[%clk 0:00:17.3]} 39. Kg4 {[%clk 0:00:29.5]} 39... Ra4+ {[%clk 0:00:17.4]} 40.
Kf3 {[%clk 0:00:28.5]} 40... h5 {[%clk 0:00:16.6]} 41. Rb5 {[%clk 0:00:28.5]}
41... Rd4 {[%clk 0:00:16.7]} 42. Ra5 {[%clk 0:00:28.1]} 42... Rg4 {[%clk
0:00:16.7]} 43. Rb5 {[%clk 0:00:27.3]} 43... Rg5 {[%clk 0:00:17.1]} 44. Rb4
{[%clk 0:00:26.5]} 44... Ra5 {[%clk 0:00:16.8]} 45. Rc4 {[%clk 0:00:26.6]} 45...
Kg5 {[%clk 0:00:17.3]} 46. Rb4 {[%clk 0:00:26.5]} 46... Rc5 {[%clk 0:00:17.2]}
47. Ra4 {[%clk 0:00:26.1]} 47... Rc3+ {[%clk 0:00:17.5]} 48. Kg2 {[%clk
0:00:25.6]} 48... Re3 {[%clk 0:00:16.6]} 49. Rb4 {[%clk 0:00:25.8]} 49... f5
{[%clk 0:00:16.7]} 50. Ra4 {[%clk 0:00:25.9]} 50... Re4 {[%clk 0:00:16.1]} 51.
Ra8 {[%clk 0:00:25.2]} 51... Re6 {[%clk 0:00:14.6]} 52. Ra4 {[%clk 0:00:24.1]}
52... Rb6 {[%clk 0:00:13.3]} 53. Ra5 {[%clk 0:00:23.6]} 53... Rh6 {[%clk
0:00:13]} 54. Ra4 {[%clk 0:00:23.7]} 54... Rh7 {[%clk 0:00:12]} 55. Rb4 {[%clk
0:00:23.2]} 55... Rc7 {[%clk 0:00:10.4]} 56. Ra4 {[%clk 0:00:23.4]} 56... Rc2+
{[%clk 0:00:10.5]} 57. Kh3 {[%clk 0:00:22.4]} 57... Re2 {[%clk 0:00:08.3]} 58.
Rb4 {[%clk 0:00:22.7]} 58... Re3 {[%clk 0:00:08.1]} 59. Rb8 {[%clk 0:00:23.3]}
59... f4 {[%clk 0:00:05.9]} 60. Rb5+ {[%clk 0:00:21.7]} 60... Kh6 {[%clk
0:00:05.6]} 61. Rb6+ {[%clk 0:00:21.7]} 61... Kh7 {[%clk 0:00:05.5]} 62. Rb7+
{[%clk 0:00:21.5]} 62... Kg6 {[%clk 0:00:05.3]} 63. Rb6+ {[%clk 0:00:21.7]}
63... Kf7 {[%clk 0:00:05.8]} 64. Kh4 {[%clk 0:00:20.1]} 64... fxg3 {[%clk
0:00:04.7]} 65. Kxh5 {[%clk 0:00:19.3]} 65... g2 {[%clk 0:00:04.7]} 66. Rb7+
{[%clk 0:00:15.8]} 66... Kf6 {[%clk 0:00:04.6]} 67. Rb6+ {[%clk 0:00:15.8]}
67... Kf5 {[%clk 0:00:05.1]} 68. Rb1 {[%clk 0:00:14.7]} 68... Rh3# {[%clk
0:00:04.8]} 0-1

[Event "*** Titled Tuesday Blitz"]
[Site "Chess.com"]
[Date "2021.02.16"]
[Round "1"]
[White "Funo09"]
[Black "ikhasu"]
[Result "1/2-1/2"]
[WhiteElo "2764"]
[BlackElo "2420"]
[TimeControl "180+1"]
[EndTime "10:08:41 PST"]
[Termination "Game drawn - insufficient material"]

1. e4 {[%clk 0:02:59]} 1... c5 {[%clk 0:02:59.3]} 2. Nc3 {[%clk 0:02:58.7]} 2...
g6 {[%clk 0:02:58.4]} 3. Bc4 {[%clk 0:02:55.4]} 3... Bg7 {[%clk 0:02:57.6]} 4.
f4 {[%clk 0:02:55.9]} 4... Nc6 {[%clk 0:02:56.9]} 5. Nf3 {[%clk 0:02:56.2]} 5...
e6 {[%clk 0:02:56.7]} 6. f5 {[%clk 0:02:56.6]} 6... Nge7 {[%clk 0:02:54.4]} 7.
fxe6 {[%clk 0:02:56.9]} 7... dxe6 {[%clk 0:02:54.2]} 8. d3 {[%clk 0:02:57]} 8...
O-O {[%clk 0:02:52.9]} 9. O-O {[%clk 0:02:57.5]} 9... Nd4 {[%clk 0:02:53]} 10.
Kh1 {[%clk 0:02:55.2]} 10... Nec6 {[%clk 0:02:47.7]} 11. Be3 {[%clk 0:02:46.1]}
11... Nxf3 {[%clk 0:02:41.7]} 12. Rxf3 {[%clk 0:02:28.1]} 12... b6 {[%clk
0:02:12.9]} 13. Bb3 {[%clk 0:02:16.6]} 13... Nd4 {[%clk 0:02:11.3]} 14. Rf2
{[%clk 0:02:16]} 14... Qh4 {[%clk 0:02:10.1]} 15. Qd2 {[%clk 0:02:11.9]} 15...
Be5 {[%clk 0:01:55.9]} 16. Bf4 {[%clk 0:02:10.9]} 16... Bxf4 {[%clk 0:01:53.1]}
17. Rxf4 {[%clk 0:02:11.8]} 17... Qh5 {[%clk 0:01:27.4]} 18. Raf1 {[%clk
0:02:08.4]} 18... Bb7 {[%clk 0:01:23.6]} 19. Qf2 {[%clk 0:01:57.5]} 19... f5
{[%clk 0:00:49.5]} 20. exf5 {[%clk 0:01:37.1]} 20... Rxf5 {[%clk 0:00:41.5]} 21.
Qe1 {[%clk 0:01:11.4]} 21... Rxf4 {[%clk 0:00:14.9]} 22. Rxf4 {[%clk 0:01:12.3]}
22... Qg5 {[%clk 0:00:14]} 23. Bxe6+ {[%clk 0:01:00.4]} 23... Kh8 {[%clk
0:00:14.1]} 24. Rg4 {[%clk 0:01:00.7]} 24... Qe7 {[%clk 0:00:13]} 25. Qe5+
{[%clk 0:00:58.5]} 25... Qg7 {[%clk 0:00:13.4]} 26. Qxg7+ {[%clk 0:00:27.9]}
26... Kxg7 {[%clk 0:00:13.3]} 27. Bb3 {[%clk 0:00:28.8]} 27... Re8 {[%clk
0:00:09]} 28. Ne4 {[%clk 0:00:19.9]} 28... h5 {[%clk 0:00:09.2]} 29. Rf4 {[%clk
0:00:17.8]} 29... Nxb3 {[%clk 0:00:08]} 30. axb3 {[%clk 0:00:14.5]} 30... g5
{[%clk 0:00:08.3]} 31. Rf5 {[%clk 0:00:08.6]} 31... Bxe4 {[%clk 0:00:08.5]} 32.
dxe4 {[%clk 0:00:08.9]} 32... Rxe4 {[%clk 0:00:08.6]} 33. Kg1 {[%clk 0:00:06.5]}
33... Kg6 {[%clk 0:00:08.9]} 34. Rf2 {[%clk 0:00:02.8]} 34... Re1+ {[%clk
0:00:09.1]} 35. Rf1 {[%clk 0:00:02.9]} 35... Re2 {[%clk 0:00:08.2]} 36. Rf2
{[%clk 0:00:03.1]} 36... Re3 {[%clk 0:00:08.3]} 37. Rd2 {[%clk 0:00:03]} 37...
Re1+ {[%clk 0:00:07.9]} 38. Kf2 {[%clk 0:00:03.9]} 38... Rb1 {[%clk 0:00:08.1]}
39. Ke3 {[%clk 0:00:02.9]} 39... Rxb2 {[%clk 0:00:08.1]} 40. Rd6+ {[%clk
0:00:03.4]} 40... Kf5 {[%clk 0:00:07.6]} 41. Kd3 {[%clk 0:00:04]} 41... Ra2
{[%clk 0:00:04.4]} 42. Rh6 {[%clk 0:00:02.5]} 42... h4 {[%clk 0:00:04.2]} 43.
Rh7 {[%clk 0:00:03.4]} 43... a5 {[%clk 0:00:03.8]} 44. g3 {[%clk 0:00:01.9]}
44... hxg3 {[%clk 0:00:03.7]} 45. hxg3 {[%clk 0:00:02.8]} 45... a4 {[%clk
0:00:03.9]} 46. bxa4 {[%clk 0:00:01.9]} 46... Rxa4 {[%clk 0:00:04.2]} 47. Rb7
{[%clk 0:00:02.8]} 47... Rd4+ {[%clk 0:00:04.6]} 48. Ke3 {[%clk 0:00:02.8]}
48... Rb4 {[%clk 0:00:05.1]} 49. c3 {[%clk 0:00:03.3]} 49... Rb3 {[%clk
0:00:05.5]} 50. Kd3 {[%clk 0:00:04.2]} 50... b5 {[%clk 0:00:06]} 51. Kc2 {[%clk
0:00:02.7]} 51... c4 {[%clk 0:00:06]} 52. Rb6 {[%clk 0:00:02.4]} 52... Kg4
{[%clk 0:00:06.4]} 53. Rg6 {[%clk 0:00:02.9]} 53... Kf5 {[%clk 0:00:06.7]} 54.
Rg8 {[%clk 0:00:03]} 54... g4 {[%clk 0:00:06.8]} 55. Rf8+ {[%clk 0:00:03]} 55...
Ke4 {[%clk 0:00:07]} 56. Rf4+ {[%clk 0:00:03.6]} 56... Ke5 {[%clk 0:00:07.3]}
57. Rxg4 {[%clk 0:00:04.5]} 57... b4 {[%clk 0:00:07.4]} 58. Rxc4 {[%clk
0:00:03.8]} 58... Rxc3+ {[%clk 0:00:08]} 59. Rxc3 {[%clk 0:00:03.9]} 59... bxc3
{[%clk 0:00:08.9]} 60. Kxc3 {[%clk 0:00:04.8]} 60... Ke4 {[%clk 0:00:09.6]} 61.
Kd2 {[%clk 0:00:04.5]} 61... Kf3 {[%clk 0:00:10.1]} 62. Kd3 {[%clk 0:00:03.6]}
62... Kxg3 {[%clk 0:00:11]} 1/2-1/2